lending/lending_fUSD_20240112
["ID","MTS","AMOUNT","RATE_DAILY","PERIOD"]
[311416052,1705079438866,-444.27223568,0.00022998,2]
[311416054,1705079438875,-309.81765568,0.00022998,2]
[311416056,1705079438884,-1917.07809896,0.00022998,2]
[311416058,1705079438893,-457.93734798,0.00022998,2]
[311416060,1705079438902,-161.04259805,0.00022998,2]
[311416062,1705079438911,-471.62742328,0.00022998,2]
[311416063,1705079438920,-155.0,0.00022998,2]
[311416066,1705079438929,-210.92031935,0.00022998,2]
[311416067,1705079438940,-156.17740484,0.00022998,2]
[311416070,1705079438949,-155.61243303,0.00022998,2]
[311416071,1705079438958,-336.49811282,0.00022998,2]
[311416074,1705079438968,-254.60190523,0.00022998,2]
[311416076,1705079438977,-504950.84064027,0.00022998,2]
[311416077,1705079438986,-400.95818767,0.00022998,2]
[311416079,1705079438995,-256.87812665,0.00022998,2]
[311416082,1705079439005,-155.0376638,0.00022998,2]
[311416084,1705079439015,-233.56810335,0.00022998,2]
[311416086,1705079439024,-156.69752137,0.00022998,2]
[311416088,1705079439032,-521.96752557,0.00022998,2]
[311416090,1705079439041,-157.09777558,0.00022998,2]
[311416092,1705079439051,-155.46499311,0.00022998,2]
[311416094,1705079439060,-168.39287458,0.00022998,2]
[311416096,1705079439069,-3001.53867376,0.00022999,2]
[311416098,1705079439078,-318.31330327,0.00022999,2]
[311416100,1705079439087,-150.0,0.00022999,2]
[311416102,1705079439097,-150.0,0.00022999,2]
[311416104,1705079439106,-150.0,0.00022999,2]
[311416106,1705079439115,-150.0,0.00022999,2]
[311416108,1705079439124,-150.0,0.00022999,2]
[311416110,1705079439133,-150.0,0.00022999,2]
[311416111,1705079439142,-150.0,0.00022999,2]
[311416114,1705079439151,-150.0,0.00022999,2]
[311416116,1705079439160,-150.0,0.00022999,2]
[311416118,1705079439169,-150.0,0.00022999,2]
[311416119,1705079439178,-150.0,0.00022999,2]
[311416122,1705079439187,-150.0,0.00022999,2]
[311416123,1705079439196,-150.0,0.00022999,2]
[311416125,1705079439205,-150.0,0.00022999,2]
[311416127,1705079439214,-150.0,0.00022999,2]
[311416129,1705079439224,-150.0,0.00022999,2]
[311416132,1705079439233,-150.0,0.00022999,2]
[311416133,1705079439242,-820655.07151885,0.00023,2]
[311416135,1705079439250,-8257015.04832222,0.00023,2]
[311416138,1705079439263,-291796.02852175,0.00023,2]
[311416140,1705079439275,-101258.036543,0.00023,2]
[311416145,1705079439315,-777.88828909,0.00023,2]
[311416148,1705079439326,-2342.94665092,0.00023,2]
[311416150,1705079439338,-1685.38135919,0.00023,2]
[311416152,1705079439349,-782.71098342,0.00023,2]
[311416154,1705079439359,-2278.8,0.00023,2]
[311416156,1705079439370,-872.06,0.00023,2]
[311416158,1705079439381,-6556.19332217,0.00023,2]
[311416164,1705079439421,-305.3356662,0.00023,2]
[311416166,1705079439432,-1006.88595186,0.00023,2]
[311416168,1705079439443,-1103.5726612,0.00023,2]
[311416171,1705079439454,-660.5970668,0.00023,2]
[311416173,1705079439465,-5248.9,0.00023,2]
[311416175,1705079439476,-874.4,0.00023,2]
[311416177,1705079439486,-1297.59,0.00023,2]
[311416180,1705079439506,-2588.85,0.00023,2]
[311416182,1705079439516,-896.85,0.00023,2]
[311416185,1705079439528,-77792.42265867,0.00023,2]
[311416188,1705079439547,-943.37243001,0.00023,2]
[311416189,1705079439571,-4525.29631233,0.00023,2]
[311416190,1705079439582,-539.04800015,0.00023,2]
[311416191,1705079439593,-3263.85608297,0.00023,2]
[311416192,1705079439603,-744.2809938,0.00023,2]
[311416193,1705079439614,-1309.85581692,0.00023,2]
[311416194,1705079439625,-645.234362,0.00023,2]
[311416197,1705079439653,-1317.61530056,0.00023,2]
[311416199,1705079439664,-1056.23549035,0.00023,2]
[311416201,1705079439675,-936.21947458,0.00023,2]
[311416203,1705079439686,-320.82736041,0.00023,2]
[311416206,1705079439702,-52020.0,0.00023,2]
[311416248,1705079440306,-2655.7956,0.00023,2]
[311416249,1705079440317,-78167.45103504,0.00023,2]
[311416250,1705079440328,-2223.01304503,0.00023,2]
[311416251,1705079440340,-955.42658331,0.00023,2]
[311416252,1705079440351,-828.94073578,0.00023,2]
[311416253,1705079440363,-304.06475865,0.00023,2]
[311416254,1705079440374,-4150.80525206,0.00023,2]
[311416255,1705079440414,-10686.99437369,0.00023,2]
[311416256,1705079440475,-668.1282527,0.00023,2]
[311416257,1705079440487,-5239.6,0.00023,2]
[311416258,1705079440498,-10354.95702389,0.00023,2]
[311416259,1705079440509,-279.29622383,0.00023,2]
[311416260,1705079440529,-580.2671,0.00023,2]
[311416261,1705079440540,-866.02,0.00023,2]
[311416262,1705079440555,-4334.1298,0.00023,2]
[311416263,1705079441143,-272.11024978,0.00023,2]
[311416264,1705079441257,-39172.06886298,0.00023,2]
[311416265,1705079441268,-555.594995,0.00023,2]
[311416271,1705079442818,-250.0,0.000229,2]
[311416272,1705079442831,-132.62688751,0.00023,2]
[311416273,1705079442843,-292.45859268,0.00023,2]
[311416274,1705079442878,-212567.81687065,0.00023,2]
[311416275,1705079442936,-1076.5124,0.00023,2]
[311416276,1705079442948,-948.29286224,0.00023,2]
[311416277,1705079442996,-4269.55169471,0.00023,2]
[311416278,1705079443008,-568.79644805,0.00023,2]
[311416279,1705079443060,-6865.63030968,0.00023,2]
[311416280,1705079443071,-117046.2938146,0.00023,2]
[311416281,1705079443115,-11294.21903297,0.00023,2]
[311416282,1705079443127,-1259.424,0.00023,2]
[311416283,1705079443175,-17323.415419,0.00023,2]
[311416285,1705079443187,-655.42463829,0.00023,2]
[311416287,1705079443198,-1250.10456314,0.00023,2]
[311416289,1705079443208,-433200.00000066,0.00023,2]
[311416480,1705079445849,-315.932156,0.00023,2]
[311416481,1705079446239,-968.99846408,0.00023,2]
[311416482,1705079446251,-408.50998461,0.00023,2]
[311416483,1705079446263,-1954.998045,0.00023,2]
[311416484,1705079446274,-869.41712424,0.00023,2]
[311416485,1705079446366,-13795.93643098,0.00023,2]
[311416486,1705079446389,-844.76438086,0.00023,2]
[311416487,1705079446400,-617.67700968,0.00023,2]
[311416488,1705079446411,-650.925,0.00023,2]
[311416489,1705079446424,-152062.54859968,0.00023,2]
[311416490,1705079446435,-20000.0,0.00023,2]
[311416491,1705079446447,-375.31267016,0.00023,2]
[311416492,1705079446459,-5789.0833,0.00023,2]
[311416493,1705079446470,-373.12087399,0.00023,2]
[311416494,1705079446481,-3590.9999975,0.00023,2]
[311416495,1705079446492,-43302.00000001,0.00023,2]
[311416496,1705079446505,-917482.54201791,0.00023,2]
[311416498,1705079446516,-26275.0000001,0.00023,2]
[311416500,1705079446527,-950.0,0.00023,2]
[311416502,1705079446539,-5208.30582001,0.00023,2]
[311416504,1705079446551,-3030.30568521,0.00023,2]
[311416514,1705079451542,345.98262118,0.00022079,2]
[311416517,1705079525055,840.0,0.00022332,2]
[311416518,1705079575692,748.03,0.00022256,2]
[311416519,1705079575907,748.03,0.00022373,2]
[311416520,1705079576218,748.03,0.0002249,2]
[311416521,1705079585613,10000.0,0.00022091,2]
[311416522,1705079604082,154.79,0.00022185,2]
[311416523,1705079609545,214.66,0.00021996,2]
[311416524,1705079629555,300.0,0.000222,8]
[311416525,1705079631649,600.0,0.000223,8]
[311416526,1705079633758,900.0,0.000224,8]
[311416528,1705079651032,1266.09,0.00021918,2]
[311416530,1705079660266,376.44759867,0.00022499,2]
[311416531,1705079662960,155.0,0.00022499,2]
[311416532,1705079674892,1772.31981003,0.00021467,7]
[311416534,1705079679290,376.78302695,0.00022499,2]
[311416535,1705079681736,155.0,0.00022499,2]
[311416536,1705079682686,295.15408793,0.00022499,2]
[311416537,1705079684846,288.58780713,0.00022499,2]
[311416538,1705079684891,155.0,0.00022499,2]
[311416539,1705079686659,246.39576141,0.00022499,2]
[311416540,1705079687309,4938.90011796,0.00022499,2]
[311416541,1705079688645,279.00084549,0.00022499,2]
[311416542,1705079688792,155.0,0.00022499,2]
[311416543,1705079689151,220.79925735,0.00022499,2]
[311416544,1705079690814,155.0,0.00022499,2]
[311416545,1705079692150,1254.8177837,0.00022499,2]
[311416546,1705079692468,155.0,0.00022499,2]
[311416547,1705079694085,157.3878743,0.00022499,2]
[311416548,1705079694119,155.0,0.00022499,2]
[311416549,1705079694243,2605.00000774,0.00022499,2]
[311416550,1705079694646,354.12902011,0.00022499,2]
[311416551,1705079695207,155.0,0.00022499,2]
[311416552,1705079695472,2018.10308734,0.00022499,2]
[311416553,1705079696929,5327.1431858,0.00022499,2]
[311416554,1705079697131,155.0,0.00022499,2]
[311416555,1705079698518,155.0,0.00022499,2]
[311416556,1705079699229,2612.76863363,0.00022499,2]
[311416557,1705079699426,155.0,0.00022499,2]
[311416558,1705079700354,827.01,0.00021801,2]
[311416559,1705079700688,155.0,0.00022499,2]
[311416560,1705079700716,2000.0,0.00021801,2]
[311416561,1705079701693,150.0,0.00022499,2]
[311416562,1705079705712,155.0,0.00022499,2]
[311416563,1705079706055,155.0,0.00022499,2]
[311416564,1705079706727,11667.66899712,0.00022499,2]
[311416565,1705079707377,236.17727712,0.00022499,2]
[311416566,1705079708225,150.0,0.00021822,2]
[311416567,1705079709941,523.33688238,0.00022499,2]
[311416568,1705079710487,155.0,0.00022499,2]
[311416569,1705079710697,1912.9258164,0.00022499,2]
[311416570,1705079711974,4267.19887316,0.00022499,2]
[311416571,1705079714279,155.0,0.00022499,2]
[311416572,1705079714450,524.5808357,0.00022499,2]
[311416573,1705079714482,155.0,0.00022499,2]
[311416574,1705079714612,242.20345528,0.00022499,2]
[311416575,1705079716309,4631.30219124,0.00022499,2]
[311416576,1705079716391,155.0,0.00022499,2]
[311416577,1705079716559,2464.17884195,0.00022499,2]
[311416578,1705079718811,2766.5766924,0.00022499,2]
[311416579,1705079718845,243083.2426234,0.00022499,2]
[311416580,1705079719506,2034.94250733,0.00022499,2]
[311416581,1705079719554,155.0,0.00022499,2]
[311416582,1705079720747,278.70636052,0.00022499,2]
[311416583,1705079720866,155.0,0.00022499,2]
[311416584,1705079721508,155.0,0.00022499,2]
[311416585,1705079721596,155.0,0.00022499,2]
[311416586,1705079722071,3929.69462296,0.00022499,2]
[311416587,1705079724519,155.0,0.00022499,2]
[311416588,1705079724724,155.0,0.00022499,2]
[311416589,1705079725399,250.02290447,0.00022499,2]
[311416590,1705079728511,2304.07734728,0.00022499,2]
[311416591,1705079728964,1844.61921989,0.00022499,2]
[311416592,1705079729062,1888.06243048,0.00022499,2]
[311416593,1705079729309,232.92375042,0.00022499,2]
[311416594,1705079731110,301.90910224,0.00022499,2]
[311416595,1705079731303,155.0,0.00022499,2]
[311416596,1705079731603,155.0,0.00022499,2]
[311416597,1705079731669,523.20663738,0.00022499,2]
[311416598,1705079733183,300.93559721,0.00022499,2]
[311416599,1705079733280,4482.56051579,0.00022499,2]
[311416600,1705079733849,153.47938083,0.000224,2]
[311416601,1705079734495,758.05412483,0.00022499,2]
[311416602,1705079734603,472.70124021,0.00022499,2]
[311416603,1705079735509,234.11386093,0.00022499,2]
[311416604,1705079737112,1656.42293049,0.00022499,2]
[311416605,1705079738480,259.87169978,0.00022499,2]
[311416606,1705079738627,21486.34484734,0.00022499,2]
[311416608,1705079741057,400.06896681,0.00022499,2]
[311416609,1705079741303,155.0,0.00022499,2]
[311416610,1705079741465,155.0,0.00022499,2]
[311416611,1705079745633,842.13097267,0.00022499,2]
[311416612,1705079747620,155.0,0.00022499,2]
[311416613,1705079756696,4630.74851402,0.00022499,2]
[311416614,1705079758039,285.07168855,0.00022499,2]
[311416615,1705079758079,376.78302695,0.00022499,2]
[311416616,1705079763134,155.0,0.00022499,2]
[311416617,1705079763168,279.00084549,0.00022499,2]
[311416618,1705079765239,295.15408793,0.00022499,2]
[311416619,1705079765445,4332.78428713,0.00022499,2]
[311416620,1705079766854,252.65442073,0.00022499,2]
[311416621,1705079766885,417.6160908,0.00022499,2]
[311416622,1705079770525,171.68625232,0.00022499,2]
[311416623,1705079775333,3855.00674069,0.00022499,2]
[311416624,1705079776607,155.0,0.00022499,2]
[311416625,1705079779930,155.0,0.00022499,2]
[311416626,1705079783344,155.0,0.00022499,2]
[311416627,1705079785128,242.20345528,0.00022499,2]
[311416628,1705079787244,11667.66899712,0.00022499,2]
[311416629,1705079789763,155.0,0.00022499,2]
[311416630,1705079790019,155.0,0.00022499,2]
[311416631,1705079792424,523.33688238,0.00022499,2]
[311416632,1705079800579,3929.69462296,0.00022499,2]
[311416633,1705079806186,523.20663738,0.00022499,2]
[311416634,1705079808467,259.87169978,0.00022499,2]
[311416635,1705079819178,472.70124021,0.00022499,2]
[311416636,1705079829720,295.15408793,0.00022499,2]
[311416637,1705079835311,156.67,0.00021993,2]
[311416638,1705079835567,156.67,0.00022251,2]
[311416640,1705079854438,155.0,0.00022499,2]
[311416641,1705079858406,258.92,0.00021753,2]
[311416643,1705079879131,577.02,0.00019835,2]
[311416644,1705079879465,577.02,0.00022099,2]
[311416645,1705079888452,155.0,0.00022499,2]
[311416646,1705079891974,302.67803736,0.00022499,2]
[311416647,1705079893263,845.481875,0.00022499,2]
[311416648,1705079894276,629.94373517,0.00022499,2]
[311416649,1705079894515,234.6910861,0.00022499,2]
[311416650,1705079896700,283.84561309,0.00022499,2]
[311416651,1705079897041,223.81614779,0.00022499,2]
[311416652,1705079898861,236.41110306,0.00022499,2]
[311416653,1705079903179,279.83,0.00021746,2]
[311416655,1705079906392,3197.150764,0.00022499,2]
[311416656,1705079938951,1000.0,0.00022498,2]
[311416657,1705079969379,53943.4309,0.00022498,2]
[311416658,1705079978594,328.0,0.00021801,2]
[311416659,1705079982008,2317.09975572,0.00022499,2]
[311416660,1705079982241,155.0,0.00022499,2]
[311416661,1705079982715,155.0,0.00022499,2]
[311416662,1705079984324,376.78302695,0.00022499,2]
[311416663,1705079985539,528.68959497,0.00022499,2]
[311416664,1705079985824,232.92375042,0.00022499,2]
[311416665,1705079986721,2777.17009316,0.00022499,2]
[311416666,1705079995224,4630.74851402,0.00022499,2]
[311416667,1705080001096,202.44330084,0.00022499,2]
[311416668,1705080002002,2018.10308734,0.00022499,2]
[311416669,1705080003025,758.05412483,0.00022499,2]
[311416670,1705080003148,155.0,0.00022499,2]
[311416671,1705080004352,7499.80832538,0.00022499,2]
[311416672,1705080005134,2135.1350746,0.00022499,2]
[311416673,1705080006117,160.46586719,0.00022499,2]
[311416674,1705080006248,295.15408793,0.00022499,2]
[311416675,1705080013145,698.47028769,0.00022499,2]
[311416676,1705080023792,3325.25210067,0.00022499,2]
[311416677,1705080027338,1427.40182184,0.00022499,2]
[311416678,1705080028260,155.0,0.00022499,2]
[311416679,1705080029156,1766.13596665,0.00022499,2]
[311416680,1705080034636,234.89781562,0.00022499,2]
[311416681,1705080037113,155.0,0.00022499,2]
[311416682,1705080040659,287298.99564936,0.00022499,2]
[311416683,1705080045787,156.84,0.00021851,2]
[311416684,1705080045996,156.84,0.00022013,2]
[311416685,1705080046245,156.84,0.00022176,2]
[311416686,1705080046492,29.48,0.00022339,2]
[311416687,1705080046522,127.36,0.00022339,2]
[311416688,1705080072534,165.48270238,0.00022399,2]
[311416689,1705080108503,500.0,0.00022399,2]
[311416690,1705080151960,874.71,0.00021566,2]
[311416691,1705080195138,681.45388408,0.00022399,2]
[311416692,1705080218218,165.48270238,0.00022399,2]
[311416693,1705080244849,1648.04850864,0.00022399,2]
[311416694,1705080257815,2000.0,0.00021541,2]
[311416695,1705080283978,154.23,0.0002197,2]
[311416696,1705080289130,151.54,0.00021753,2]
[311416697,1705080289331,151.54,0.00021867,2]
[311416698,1705080289550,151.54,0.00021982,2]
[311416699,1705080289990,151.54,0.00022096,2]
[311416700,1705080290224,151.54,0.00022211,2]
[311416701,1705080290438,151.54,0.00022325,2]
[311416702,1705080291278,151.54,0.0002244,2]
[311416703,1705080291565,646.47,0.00021711,2]
[311416704,1705080335529,545.16310724,0.00022399,2]
[311416705,1705080356746,165.48270238,0.00022399,2]
[311416706,1705080388710,519.31,0.00019623,2]
[311416707,1705080388880,519.31,0.00021887,2]
[311416708,1705080398277,164.62,0.00021541,2]
[311416709,1705080405063,2054.8085,0.00022396,2]
[311416710,1705080427980,886.48758321,0.00031,120]
[311416711,1705080439619,200.0,0.000219,7]
[311416712,1705080441728,500.0,0.000223,8]
[311416713,1705080443120,-158.48029498,0.00022454,2]
[311416714,1705080443140,-286.33384578,0.00022454,2]
[311416715,1705080443159,-2317.09975572,0.00022455,2]
[311416716,1705080443179,-1694.6974761,0.00022455,2]
[311416717,1705080443888,700.0,0.000224,8]
[311416718,1705080455659,737.6,0.00021753,2]
[311416719,1705080473403,180.62,0.00021706,2]
[311416720,1705080473632,180.62,0.00021766,2]
[311416721,1705080474023,180.62,0.00021825,2]
[311416722,1705080474419,180.62,0.00021885,2]
[311416723,1705080474670,180.62,0.00021944,2]
[311416724,1705080475210,180.62,0.00022004,2]
[311416725,1705080475270,180.62,0.00022063,2]
[311416726,1705080475328,180.62,0.00022123,2]
[311416727,1705080475577,180.62,0.00022182,2]
[311416728,1705080475820,180.62,0.00022242,2]
[311416729,1705080476033,180.62,0.00022301,2]
[311416730,1705080476222,436.1304858,0.00022399,2]
[311416731,1705080476254,180.62,0.00022361,2]
[311416732,1705080476670,180.62,0.00022421,2]
[311416733,1705080483581,2018.10308734,0.0002245,2]
[311416734,1705080491896,1442.04244506,0.00022399,2]
[311416735,1705080506965,3041.02252982,0.0002245,2]
[311416736,1705080508432,252.65442073,0.0002245,2]
[311416737,1705080509804,265.185965,0.0002245,2]
[311416738,1705080515033,286.33384578,0.0002245,2]
[311416739,1705080519716,514.98040546,0.0002245,2]
[311416740,1705080520652,765.80999369,0.0002245,2]
[311416741,1705080520742,182.44,0.00021536,2]
[311416742,1705080521714,155.0,0.0002245,2]
[311416743,1705080526280,203.02938773,0.00022449,2]
[311416744,1705080530124,155.0,0.0002245,2]
[311416745,1705080531607,155.0,0.0002245,2]
[311416746,1705080535401,155.0,0.0002245,2]
[311416747,1705080608646,840.23,0.00021559,2]
[311416748,1705080616531,348.90438864,0.00022399,2]
[311416785,1705080634927,-612.26946522,0.00022453,2]
[311416786,1705080634987,-2428.7530646,0.00022453,2]
[311416787,1705080634996,-468.21333453,0.00022453,2]
[311416788,1705080635006,-7989.16308727,0.00022455,2]
[311416789,1705080635018,-406.72239281,0.00022455,2]
[311416790,1705080635049,-10596.72498579,0.00022455,2]
[311416791,1705080635059,-1442.042445,0.00022471,2]
[311416792,1705080635069,-1077.75528068,0.0002248,2]
[311416793,1705080635079,-180.62,0.0002248,2]
[311416794,1705080635089,-338.63360765,0.00022489,2]
[311416795,1705080635098,-7757.03805084,0.0002249,2]
[311416796,1705080635107,-516.52497403,0.00022493,2]
[311416797,1705080635117,-21108.71485172,0.00022495,2]
[311416798,1705080635129,-610.18376816,0.00022495,2]
[311416799,1705080635140,-604.7260143,0.00022495,2]
[311416800,1705080635152,-870.25017859,0.00022495,2]
[311416801,1705080635168,-400.0,0.00022495,2]
[311416802,1705080635189,-870.34396858,0.00022495,2]
[311416803,1705080635202,-18846.29538829,0.00022495,2]
[311416804,1705080635214,-7652.70891006,0.00022495,2]
[311416805,1705080635268,-698.57587295,0.00022495,2]
[311416806,1705080635289,-1358.5,0.00022495,2]
[311416807,1705080635301,-3755.1079601,0.00022495,2]
[311416808,1705080635313,-374.52,0.00022495,2]
[311416814,1705080635427,-626.93653708,0.00022495,2]
[311416816,1705080635439,-546.69999,0.00022495,2]
[311416818,1705080635451,-687.257,0.00022495,2]
[311416820,1705080635463,-499.6,0.00022495,2]
[311416822,1705080635476,-301.48,0.00022495,2]
[311416823,1705080635487,-762.71,0.00022495,2]
[311416824,1705080635499,-440.0,0.00022495,2]
[311416825,1705080635511,-406.76,0.00022495,2]
[311416826,1705080635532,-532.8,0.00022495,2]
[311416827,1705080635544,-444.0,0.00022495,2]
[311416828,1705080635555,-2184.2598,0.00022495,2]
[311416829,1705080635593,-576.57357286,0.00022495,2]
[311416830,1705080635606,-746.41878368,0.00022495,2]
[311416840,1705080637996,-2294.55917338,0.00022452,2]
[311416841,1705080638008,-1297.70231602,0.00022495,2]
[311416842,1705080638019,-4071.7204,0.00022496,2]
[311416843,1705080638031,-1000.0,0.00022496,2]
[311416844,1705080638042,-923.28,0.00022496,2]
[311416845,1705080638054,-612.7,0.00022496,2]
[311416846,1705080638065,-499.99,0.00022496,2]
[311416847,1705080638077,-1832.72,0.00022496,2]
[311416848,1705080638089,-21826.23261858,0.00022497,2]
[311416849,1705080638100,-305.64724086,0.00022497,2]
[311416850,1705080638111,-400.0,0.00022497,2]
[311416851,1705080638123,-233.82560412,0.00022497,2]
[311416852,1705080638135,-178.02448792,0.00022497,2]
[311416853,1705080638146,-196.50453507,0.00022497,2]
[311416854,1705080638158,-155.0,0.00022497,2]
[311416855,1705080638172,-1049.80657293,0.00022497,2]
[311416856,1705080638184,-2022.975,0.00022497,2]
[311416857,1705080638195,-159.44967543,0.00022497,2]
[311416858,1705080638206,-830.84203572,0.00022497,2]
[311416859,1705080638217,-1854.20982378,0.00022497,2]
[311416860,1705080638229,-253.77045803,0.00022497,2]
[311416861,1705080638240,-224.85727167,0.00022497,2]
[311416862,1705080638251,-334.55882059,0.00022497,2]
[311416863,1705080638263,-520.45171857,0.00022497,2]
[311416864,1705080638275,-155.27713894,0.00022497,2]
[311416865,1705080638287,-170.72459692,0.00022497,2]
[311416866,1705080638299,-252.62872312,0.00022497,2]
[311416867,1705080638311,-257.13429201,0.00022497,2]
[311416868,1705080638322,-225.82963273,0.00022497,2]
[311416869,1705080638333,-155.71877236,0.00022497,2]
[311416870,1705080638345,-176.51930353,0.00022498,2]
[311416871,1705080638356,-599.07341547,0.00022498,2]
[311416872,1705080638368,-768483.06179574,0.00022499,2]
[311416873,1705080638380,-200.0,0.00022499,2]
[311416874,1705080638391,-1371.38,0.000225,2]
[311416875,1705080638403,-58646.30530861,0.000225,2]
[311416876,1705080638414,-59794.16852451,0.000225,2]
[311416877,1705080638427,-1000.0,0.000225,8]
[311416878,1705080638439,-156.67,0.0002251,2]
[311416879,1705080638452,-348.90438863,0.00022524,2]
[311416880,1705080638464,-840.23,0.00022538,2]
[311416881,1705080638476,-180.62,0.0002254,2]
[311416882,1705080638488,-1442.042445,0.00022542,2]
[311416883,1705080638500,-151.54,0.00022554,2]
[311416884,1705080638511,-418.95927661,0.00022583,2]
[311416885,1705080638522,-155.00001492,0.00022594,2]
[311416888,1705080638537,-1438.26,0.00022594,2]
[311416890,1705080638548,-155.0,0.00022594,2]
[311416892,1705080638559,-445.4206063,0.00022594,2]
[311416894,1705080638570,-403.67230355,0.00022594,2]
[311416896,1705080638582,-199.61237304,0.00022594,2]
[311416898,1705080638593,-217.82950903,0.00022594,2]
[311416901,1705080638604,-157.91783663,0.00022594,2]
[311416903,1705080638624,-2386.14581601,0.00022594,2]
[311416905,1705080638647,-326.58918329,0.00022594,2]
[311416907,1705080638670,-531.42040528,0.00022594,2]
[311416909,1705080638694,-234.99940953,0.00022594,2]
[311416911,1705080638718,-3914.75022419,0.00022594,2]
[311416913,1705080638743,-1702.26464589,0.00022594,2]
[311416914,1705080638760,-203.1548655,0.00022594,2]
[311416915,1705080638772,-175.68153544,0.00022594,2]
[311416916,1705080638783,-761.61373871,0.00022594,2]
[311416917,1705080638793,-210.06424657,0.00022594,2]
[311416918,1705080638804,-2154.16716946,0.00022594,2]
[311416919,1705080638815,-417.96713298,0.00022594,2]
[311416920,1705080638827,-685.72293231,0.00022594,2]
[311416921,1705080638838,-2266.72277423,0.00022594,2]
[311416922,1705080638848,-1372.42409869,0.00022594,2]
[311416923,1705080638860,-917.5600593,0.00022594,2]
[311416924,1705080638871,-225.78302,0.00022594,2]
[311416925,1705080638882,-235.65900379,0.00022594,2]
[311416926,1705080638893,-173.09804103,0.00022595,2]
[311416928,1705080638904,-258.03530166,0.00022595,2]
[311416930,1705080638916,-1462.06622844,0.00022596,4]
[311416932,1705080638928,-476.78037266,0.00022596,2]
[311416935,1705080638940,-196.42218781,0.00022596,2]
[311416937,1705080638951,-1136.36510211,0.00022596,2]
[311416939,1705080638961,-156.0502567,0.00022596,2]
[311416941,1705080638973,-202.9641373,0.00022596,2]
[311416942,1705080638983,-253.39734475,0.00022596,2]
[311416943,1705080638995,-7208.03205535,0.00022596,2]
[311416944,1705080639007,-167.14187597,0.00022596,2]
[311416945,1705080639018,-219.85090487,0.00022596,2]
[311416946,1705080639029,-155.36310221,0.00022596,2]
[311416947,1705080639040,-2286.39854772,0.00022596,2]
[311416948,1705080639051,-155.0376638,0.00022596,2]
[311416949,1705080639062,-500.00466881,0.00022596,2]
[311416950,1705080639073,-195.52042359,0.00022596,2]
[311416951,1705080639084,-310.64240248,0.00022596,2]
[311416952,1705080639095,-220.47901189,0.00022596,2]
[311416953,1705080639106,-233.76777463,0.00022596,2]
[311416954,1705080639118,-265.34853388,0.00022596,2]
[311416955,1705080639130,-270.60037622,0.00022596,2]
[311416956,1705080639141,-250.102693,0.00022596,2]
[311416957,1705080639152,-210.92031935,0.00022596,2]
[311416958,1705080639163,-207.56937403,0.00022596,2]
[311416959,1705080639177,-311.1230143,0.00022596,2]
[311416960,1705080639189,-221.41381807,0.00022596,2]
[311416961,1705080639200,-158.56041797,0.00022596,2]
[311416962,1705080639211,-271.37917941,0.00022596,2]
[311416963,1705080639223,-155.5086803,0.00022596,2]
[311416964,1705080639234,-188.95625647,0.00022596,2]
[311416965,1705080639245,-155.93966071,0.00022596,2]
[311416966,1705080639256,-385.02931366,0.00022596,2]
[311416967,1705080639268,-155.61243303,0.00022596,2]
[311416968,1705080639279,-162.61551097,0.00022596,2]
[311416969,1705080639290,-1152.13377613,0.00022596,2]
[311416970,1705080639301,-2618.1005262,0.00022596,2]